bitfinex-derivatives/quotes_BTCF0:USTF0_20251009
["timestamp","ask_amount","ask_price","bid_price","bid_amount"]
[1760005517612,0.61063954,121870.0,121860.0,0.25612075]
[1760005518317,0.90063954,121870.0,121850.0,0.3608]
[1760005518516,0.05893868,121860.0,121850.0,0.25612075]
[1760005518714,1.20973868,121860.0,121850.0,0.25612075]
[1760005518915,0.93143954,121860.0,121850.0,0.25612075]
[1760005519121,0.99036476,121860.0,121850.0,0.25612075]
[1760005519418,0.93143954,121860.0,121850.0,0.25612075]
[1760005520220,0.99034859,121860.0,121850.0,0.25612075]
[1760005520515,0.93143954,121860.0,121850.0,0.25612075]
[1760005520710,0.99560555,121860.0,121850.0,0.25612075]
[1760005520917,0.99660555,121860.0,121850.0,0.25612075]
[1760005521115,0.99660555,121860.0,121840.0,0.74116]
[1760005521316,0.05887635,121850.0,121840.0,0.25612075]
[1760005521515,0.65887635,121850.0,121840.0,0.25464161]
[1760005521714,0.67951589,121850.0,121840.0,0.65464161]
[1760005521915,0.67951589,121850.0,121840.0,0.25612075]
[1760005522619,0.68051589,121850.0,121840.0,0.25612075]
[1760005522819,0.68051589,121850.0,121830.0,0.3608]
[1760005523020,0.68051589,121850.0,121840.0,0.25612075]
[1760005523222,0.68051589,121850.0,121830.0,0.3608]
[1760005523422,0.68051589,121850.0,121840.0,0.25612075]
[1760005524619,0.70805311,121850.0,121840.0,0.25612075]
[1760005525018,0.64917676,121850.0,121840.0,0.25612075]
[1760005526222,1.49045676,121850.0,121820.0,0.39441]
[1760005526422,1.85125676,121850.0,121830.0,0.25612075]
[1760005526818,1.20324596,121850.0,121830.0,0.25612075]
[1760005527023,1.94452596,121850.0,121830.0,0.25612075]
[1760005527419,1.95208596,121850.0,121820.0,0.3608]
[1760005527619,1.71580306,121850.0,121820.0,0.61692075]
[1760005527818,1.10208,121840.0,121820.0,0.25612075]
[1760005528024,1.69271954,121840.0,121820.0,0.25612075]
[1760005528430,1.80271954,121840.0,121820.0,0.25612075]
[1760005528922,1.80271954,121840.0,121820.0,0.23385195]
[1760005529119,1.80271954,121840.0,121810.0,1.10208]
[1760005529428,2.22271954,121840.0,121820.0,0.25612075]
[1760005529724,2.22271954,121840.0,121810.0,1.35820075]
[1760005529926,1.48143954,121840.0,121810.0,0.61692075]
[1760005530126,2.22275954,121840.0,121820.0,0.25612075]
[1760005530327,1.48343954,121840.0,121820.0,0.25612075]
[1760005530528,2.22475954,121840.0,121820.0,0.25612075]
[1760005531227,2.11475954,121840.0,121820.0,0.25612075]
[1760005531427,2.20551841,121840.0,121820.0,0.25612075]
[1760005531727,1.46419841,121840.0,121820.0,0.25612075]
[1760005532027,2.20555841,121840.0,121820.0,0.25612075]
[1760005532428,2.20555841,121840.0,121810.0,0.3608]
[1760005532627,1.46419841,121840.0,121820.0,0.25612075]
[1760005532828,1.10339841,121840.0,121830.0,0.25612075]
[1760005533030,1.84475841,121840.0,121820.0,0.39651]
[1760005533329,1.84475841,121840.0,121830.0,0.25612075]
[1760005533529,1.84279841,121840.0,121830.0,0.25612075]
[1760005533728,1.84479841,121840.0,121820.0,0.39651]
[1760005533929,1.84479841,121840.0,121830.0,0.25612075]
[1760005534230,1.90367476,121840.0,121820.0,0.39651]
[1760005534426,1.90367476,121840.0,121830.0,0.25612075]
[1760005534924,1.84479841,121840.0,121830.0,0.25612075]
[1760005535230,1.84348272,121840.0,121830.0,0.25612075]
[1760005535427,1.84348272,121840.0,121820.0,0.39651]
[1760005535625,1.10208272,121840.0,121830.0,0.25612075]
[1760005535831,1.84348272,121840.0,121830.0,0.25612075]
[1760005536326,1.90235907,121840.0,121830.0,0.25612075]
[1760005536527,1.90035907,121840.0,121830.0,0.25612075]
[1760005536727,2.26315907,121840.0,121830.0,0.25612075]
[1760005537128,2.26315907,121840.0,121820.0,0.25612075]
[1760005537129,2.49315907,121840.0,121820.0,0.25612075]
[1760005537330,2.49115907,121840.0,121820.0,0.25612075]
[1760005537529,2.49315907,121840.0,121820.0,0.25612075]
[1760005537833,2.49315907,121840.0,121810.0,1.13791]
[1760005538131,2.74927982,121840.0,121820.0,0.25612075]
[1760005538328,2.49315907,121840.0,121820.0,0.25612075]
[1760005538934,2.49315907,121840.0,121810.0,1.39403075]
[1760005538935,2.74927982,121840.0,121810.0,1.39403075]
[1760005539133,0.05887635,121830.0,121820.0,0.25612075]
[1760005539333,0.58887635,121830.0,121820.0,0.21771442]
[1760005539535,0.6082002,121830.0,121820.0,0.21771442]
[1760005539729,0.6082002,121830.0,121810.0,0.3608]
[1760005540033,0.6082002,121830.0,121820.0,0.25612075]
[1760005540228,0.6082002,121830.0,121810.0,1.35836075]
[1760005540429,0.6082002,121830.0,121820.0,0.25612075]
[1760005540630,0.6102002,121830.0,121820.0,0.25612075]
[1760005540924,0.6102002,121830.0,121810.0,0.3608]
[1760005541129,1.3516402,121830.0,121810.0,0.61692075]
[1760005541329,1.5716402,121830.0,121810.0,0.61692075]
[1760005542137,1.3516402,121830.0,121810.0,0.61692075]
[1760005542336,0.05887635,121820.0,121810.0,0.61692075]
[1760005542532,0.74474395,121820.0,121810.0,0.65263075]
[1760005542739,0.6982002,121820.0,121810.0,0.65263075]
[1760005543633,0.6992002,121820.0,121810.0,0.65263075]
[1760005544539,0.6992002,121820.0,121810.0,0.39651]
[1760005544739,0.6992002,121820.0,121810.0,0.65263075]
[1760005545335,0.6992002,121820.0,121810.0,1.79411075]
[1760005545735,0.6992002,121820.0,121810.0,1.05263075]
[1760005545940,0.64032385,121820.0,121810.0,1.79411075]
[1760005546142,0.6992002,121820.0,121810.0,1.79411075]
[1760005546643,0.7651006,121820.0,121810.0,1.79411075]
[1760005547343,0.6992002,121820.0,121810.0,1.77542177]
[1760005549336,0.6992002,121820.0,121810.0,1.03394177]
[1760005549537,0.6992002,121820.0,121810.0,1.77546177]
[1760005550245,0.6992002,121820.0,121810.0,0.63394177]
[1760005550447,0.6992002,121820.0,121810.0,1.37542177]
[1760005550649,0.6992002,121820.0,121810.0,0.59823177]
[1760005550849,0.6992002,121820.0,121810.0,1.33995177]
[1760005551149,0.7661706,121820.0,121810.0,1.33995177]
[1760005551846,0.7661706,121820.0,121810.0,1.08383102]
[1760005552045,0.7661706,121820.0,121810.0,1.33995177]
[1760005552248,0.7661706,121820.0,121810.0,1.08383102]
[1760005552449,0.7661706,121820.0,121810.0,1.33995177]
[1760005552848,0.7661706,121820.0,121810.0,1.08379102]
[1760005553149,0.7661706,121820.0,121810.0,1.33991177]
[1760005553448,0.7661706,121820.0,121810.0,0.34211102]
[1760005553647,1.0224598,121820.0,121810.0,0.34211102]
[1760005553845,0.70729425,121820.0,121810.0,1.08391102]
[1760005554046,0.76633905,121820.0,121810.0,0.7418]
[1760005556144,0.76633905,121820.0,121800.0,0.61692075]
[1760005556344,0.76633905,121820.0,121810.0,0.74176]
[1760005556850,0.76633905,121820.0,121810.0,0.7418]
[1760005557048,0.76633905,121820.0,121800.0,0.65526075]
[1760005557246,0.76633905,121820.0,121800.0,1.39702075]
[1760005557550,0.77289905,121820.0,121800.0,1.39702075]
[1760005558745,0.0590448,121810.0,121800.0,1.39702075]
[1760005558949,0.6490448,121810.0,121800.0,1.39702075]
[1760005559252,0.66836865,121810.0,121800.0,1.39702075]
[1760005559948,0.66836865,121810.0,121800.0,1.39698075]
[1760005560752,0.66936865,121810.0,121800.0,1.39698075]
[1760005561053,0.66936865,121810.0,121800.0,1.14086]
[1760005561351,0.61032385,121810.0,121800.0,1.39702075]
[1760005562751,0.61032385,121810.0,121800.0,0.65526075]
[1760005562952,0.61032385,121810.0,121800.0,1.39698075]
[1760005563652,0.66936865,121810.0,121800.0,1.39698075]
[1760005564350,0.66936865,121810.0,121800.0,0.65526075]
[1760005564554,0.66936865,121810.0,121800.0,0.99780075]
[1760005564953,0.68400948,121810.0,121800.0,0.99780075]
[1760005565359,1.8672446,121810.0,121770.0,0.03834]
[1760005565655,0.4346061,121790.0,121780.0,0.4974249]
[1760005565856,1.00392995,121790.0,121780.0,0.4974249]
[1760005566248,1.00392995,121790.0,121770.0,0.65526075]
[1760005566448,0.05900166,121780.0,121770.0,0.65526075]
[1760005566652,0.67832551,121780.0,121770.0,1.39774075]
[1760005567057,0.67832551,121780.0,121770.0,0.39914]
[1760005567257,0.67832551,121780.0,121770.0,1.39774075]
[1760005567450,0.67832551,121780.0,121770.0,0.99860075]
[1760005567851,0.67832551,121780.0,121760.0,0.65526075]
[1760005568157,0.67832551,121780.0,121760.0,0.39914]
[1760005568360,1.29524626,121780.0,121760.0,0.29446075]
[1760005568656,0.98012385,121780.0,121770.0,0.74268]
[1760005569057,0.98012385,121780.0,121770.0,0.74262]
[1760005569262,1.06607392,121780.0,121770.0,0.74262]
[1760005569952,1.06707392,121780.0,121770.0,0.74262]
[1760005570962,1.06707392,121780.0,121760.0,0.65526075]
[1760005571259,1.06707392,121780.0,121770.0,0.03834]
[1760005571460,1.06707392,121780.0,121770.0,0.29446075]
[1760005571658,0.70627392,121780.0,121770.0,0.29446075]
[1760005571860,0.70627392,121780.0,121760.0,1.14178]
[1760005572056,0.70627392,121780.0,121760.0,1.39790075]
[1760005572254,0.70627392,121780.0,121770.0,0.25612075]
[1760005572651,0.70627392,121780.0,121770.0,0.61692075]
[1760005572859,0.70627392,121780.0,121770.0,0.65526075]
[1760005573256,0.70527392,121780.0,121770.0,0.65526075]
[1760005573561,0.70627392,121780.0,121770.0,0.65526075]
[1760005574156,0.70627392,121780.0,121770.0,1.33418053]
[1760005574462,0.64735669,121780.0,121770.0,1.52654106]
[1760005575164,0.64735669,121780.0,121770.0,1.33414053]
[1760005575959,0.64735669,121780.0,121770.0,1.52654106]
[1760005576764,0.62032385,121780.0,121770.0,1.18394106]
[1760005576963,0.62032385,121780.0,121770.0,1.92678106]
[1760005577163,0.62032385,121780.0,121770.0,1.18394106]
[1760005577360,0.62032385,121780.0,121770.0,1.54198]
[1760005577663,0.62032385,121780.0,121770.0,1.92678106]
[1760005577867,0.62032385,121780.0,121770.0,1.18394106]
[1760005578259,0.62032385,121780.0,121770.0,1.92678106]
[1760005578560,0.62032385,121780.0,121770.0,1.54198]
[1760005578760,0.62032385,121780.0,121770.0,1.18394106]
[1760005578965,0.62032385,121780.0,121770.0,1.92674106]
[1760005580268,0.62032385,121780.0,121770.0,1.18394106]
[1760005580563,0.62032385,121780.0,121770.0,1.92670106]
[1760005582071,0.62688385,121780.0,121770.0,1.92670106]
[1760005584573,0.62688385,121780.0,121770.0,1.9265303]
[1760005589176,0.62688385,121780.0,121770.0,1.1837703]
[1760005589473,0.62688385,121780.0,121770.0,1.9263303]
[1760005590670,0.69300289,121780.0,121770.0,1.9263303]
[1760005591977,0.69300289,121780.0,121770.0,1.9262503]
[1760005594674,0.69300289,121780.0,121770.0,1.5857603]
[1760005594675,0.62688385,121780.0,121770.0,1.5857603]
[1760005594876,0.62688385,121780.0,121770.0,0.8433203]
[1760005595067,0.62688385,121780.0,121770.0,0.39896924]
[1760005595276,0.62688385,121780.0,121770.0,0.7837703]
[1760005595876,0.62688385,121780.0,121770.0,1.5261703]
[1760005596780,0.62688385,121780.0,121770.0,1.5261303]
[1760005597079,0.62688385,121780.0,121770.0,1.5856803]
[1760005597279,0.62688385,121780.0,121770.0,1.5261303]
[1760005597579,0.62688385,121780.0,121770.0,0.7837703]
[1760005597782,0.62688385,121780.0,121770.0,1.5261303]
[1760005598180,0.62688385,121780.0,121770.0,0.7837703]
[1760005598381,0.62688385,121780.0,121770.0,1.5261303]
[1760005598682,0.62688385,121780.0,121770.0,0.7837703]
[1760005598883,0.62688385,121780.0,121770.0,1.5260903]
[1760005599580,0.027084,121790.0,121780.0,0.03646]
[1760005599780,0.3,121790.0,121780.0,1.52438106]
[1760005600078,0.57,121790.0,121780.0,1.52438106]
[1760005600284,0.59633906,121790.0,121780.0,1.52434106]
[1760005601978,0.59633906,121790.0,121780.0,0.78206106]
[1760005602180,0.59633906,121790.0,121780.0,0.97446159]
[1760005602383,0.59733906,121790.0,121780.0,1.52430106]
[1760005602778,0.59733906,121790.0,121780.0,1.71670159]
[1760005603373,0.59733906,121790.0,121780.0,0.45681]
[1760005603578,0.59733906,121790.0,121780.0,1.77649159]
[1760005604887,0.59733906,121790.0,121780.0,1.58409106]
[1760005605683,0.59733906,121790.0,121780.0,1.77649159]
[1760005606386,0.59733906,121790.0,121780.0,1.03401159]
[1760005606681,0.59733906,121790.0,121780.0,1.43401159]
[1760005606884,0.59733906,121790.0,121780.0,2.17649159]
[1760005608187,0.06547723,121810.0,121780.0,2.17649159]
[1760005608383,0.38547723,121810.0,121800.0,0.78092106]
[1760005608577,0.64547723,121810.0,121800.0,0.39612]
[1760005608781,0.64547723,121810.0,121800.0,1.52340106]
[1760005609182,0.6725028,121810.0,121800.0,0.78092106]
[1760005609588,0.86490333,121810.0,121800.0,0.97016053]
[1760005609785,0.8069861,121810.0,121800.0,0.97016053]
[1760005610386,1.2069861,121810.0,121800.0,0.97016053]
[1760005611590,1.22633151,121810.0,121800.0,0.97016053]
[1760005612291,1.03393098,121810.0,121800.0,1.33096053]
[1760005613180,1.03393098,121810.0,121800.0,1.52336106]
[1760005615893,1.02737098,121810.0,121800.0,1.52336106]
[1760005616094,1.02737098,121810.0,121800.0,0.78092106]
[1760005616394,1.02737098,121810.0,121800.0,1.52332106]
[1760005620095,0.62017093,121820.0,121800.0,1.52332106]
[1760005620294,1.36945212,121820.0,121810.0,0.19240053]
[1760005620495,1.30865212,121820.0,121810.0,0.19240053]
[1760005621499,1.33537858,121820.0,121810.0,0.19240053]
[1760005621795,1.33637858,121820.0,121810.0,0.93464053]
[1760005623302,1.39529581,121820.0,121810.0,0.93464053]
[1760005626305,1.75609581,121820.0,121810.0,0.93456053]
[1760005626501,1.39529581,121820.0,121810.0,0.93456053]
[1760005626701,1.10952,121830.0,121810.0,0.74216]
[1760005626904,1.95952,121830.0,121810.0,0.93456053]
[1760005627102,2.38162313,121830.0,121820.0,0.38480106]
[1760005627304,1.63950313,121830.0,121820.0,0.38480106]
[1760005627505,2.38162313,121830.0,121820.0,0.38480106]
[1760005628004,2.38362313,121830.0,121820.0,0.38480106]
[1760005628804,0.71742747,121830.0,121820.0,1.01559159]
[1760005629001,0.75069702,121830.0,121820.0,1.37639159]
[1760005629201,0.75069702,121830.0,121820.0,2.11871159]
[1760005629908,1.02069702,121830.0,121820.0,2.11871159]
[1760005630104,0.95563565,121830.0,121820.0,1.77639159]
[1760005630305,0.95563565,121830.0,121820.0,2.51887159]
[1760005630306,0.60363565,121830.0,121820.0,2.51887159]
[1760005630606,0.60463565,121830.0,121820.0,2.51887159]
[1760005633506,0.30807565,121830.0,121820.0,2.51887159]
[1760005633811,0.61807565,121830.0,121820.0,2.51883159]
[1760005634203,0.61807565,121830.0,121820.0,2.19784807]
[1760005636209,0.06699999,121850.0,121840.0,0.09826]
[1760005636403,0.52,121850.0,121840.0,1.71389614]
[1760005636601,0.74,121850.0,121840.0,2.11389614]
[1760005636804,0.74,121850.0,121840.0,2.05402614]
[1760005637411,0.742,121850.0,121840.0,2.05402614]
[1760005638112,0.80794324,121850.0,121840.0,2.05402614]
[1760005638608,0.82677779,121850.0,121840.0,2.05402614]
[1760005638806,0.85436974,121850.0,121840.0,2.05402614]
[1760005640011,0.85436974,121850.0,121840.0,1.31162614]
[1760005640206,0.85436974,121850.0,121840.0,2.05398614]
[1760005641008,0.85436974,121850.0,121840.0,1.31162614]
[1760005641208,0.66436974,121850.0,121840.0,1.31162614]
[1760005641612,1.03436974,121850.0,121840.0,2.05394614]
[1760005642413,0.66436974,121850.0,121840.0,2.05394614]
[1760005642610,0.85436974,121850.0,121840.0,2.05394614]
[1760005642811,0.85436974,121850.0,121840.0,1.31162614]
[1760005643113,0.85436974,121850.0,121840.0,2.05386614]
[1760005643811,0.85436974,121850.0,121840.0,1.31162614]
[1760005644111,0.85436974,121850.0,121840.0,2.05382614]
[1760005644412,0.9684265,121850.0,121840.0,2.05382614]
[1760005645316,0.9684265,121850.0,121840.0,1.54139]
[1760005645712,0.9684265,121850.0,121840.0,2.05382614]
[1760005646213,0.9684265,121850.0,121840.0,1.77892336]
[1760005646715,0.9684265,121850.0,121840.0,2.03514143]
[1760005647411,1.03457319,121850.0,121840.0,2.03514143]
[1760005648109,1.03457319,121850.0,121840.0,2.03506143]
[1760005648508,1.03457319,121850.0,121840.0,2.03502143]
[1760005649908,0.05891752,121860.0,121840.0,1.03672336]
[1760005650108,1.18971752,121860.0,121850.0,0.99825807]
[1760005650316,1.41971752,121860.0,121850.0,0.99825807]
[1760005650915,1.44668224,121860.0,121850.0,0.25621807]
[1760005651118,1.44668224,121860.0,121850.0,0.99825807]
[1760005651414,1.44868224,121860.0,121850.0,0.99825807]
[1760005652213,1.51299411,121860.0,121850.0,0.99825807]
[1760005652407,1.51499411,121860.0,121850.0,0.99825807]
[1760005653816,1.51499411,121860.0,121850.0,0.74204]
[1760005654011,1.51499411,121860.0,121850.0,0.99825807]
[1760005655012,1.52988269,121860.0,121850.0,0.99825807]
[1760005656721,1.52988269,121860.0,121850.0,0.25621807]
[1760005656919,1.16908269,121860.0,121850.0,0.25621807]
[1760005657119,1.45607659,121860.0,121850.0,0.25621807]
[1760005657317,0.8222461,121870.0,121850.0,1.35889807]
[1760005657518,1.85844,121870.0,121860.0,0.25621807]
[1760005657714,1.20385931,121870.0,121850.0,0.7608]
[1760005658019,1.94573931,121870.0,121850.0,1.75889807]
[1760005658218,1.94573931,121870.0,121850.0,1.50268]
[1760005658421,1.97298659,121870.0,121850.0,1.75889807]
[1760005658720,1.97498659,121870.0,121850.0,1.75889807]
[1760005659222,1.96842659,121870.0,121850.0,1.75889807]
[1760005659516,1.22654659,121870.0,121850.0,1.01701807]
[1760005659721,1.96842659,121870.0,121850.0,1.75889807]
[1760005660519,2.07175513,121870.0,121850.0,1.75889807]
[1760005660820,0.23079034,121860.0,121850.0,0.3608]
[1760005661016,1.47079034,121860.0,121840.0,1.35897807]
[1760005661217,1.56495265,121860.0,121850.0,0.16750289]
[1760005662022,1.5831501,121860.0,121850.0,0.16750289]
[1760005662521,1.68641376,121860.0,121850.0,0.16750289]
[1760005662722,1.9439501,121860.0,121850.0,0.08893904]
[1760005662925,1.9439501,121860.0,121840.0,0.19397807]
[1760005663119,0.4640629,121850.0,121840.0,0.19397807]
[1760005663315,1.74226035,121850.0,121840.0,0.19397807]
[1760005663518,2.57011894,121850.0,121810.0,0.39919]
[1760005663720,2.57011894,121850.0,121830.0,0.65621807]
[1760005664018,0.1032629,121840.0,121830.0,0.65621807]
[1760005664218,0.89819745,121840.0,121830.0,0.65621807]
[1760005664424,1.09425259,121840.0,121830.0,0.65621807]
[1760005665124,0.99106442,121840.0,121830.0,0.65621807]
[1760005665624,0.99106442,121840.0,121830.0,0.3813097]
[1760005665819,1.73310442,121840.0,121830.0,0.3813097]
[1760005666025,1.73410442,121840.0,121830.0,0.3813097]
[1760005667923,1.79300157,121840.0,121830.0,0.3813097]
[1760005669424,1.43274324,121850.0,121830.0,0.3813097]
[1760005669618,2.45274324,121850.0,121830.0,0.3813097]
[1760005669821,2.77108455,121850.0,121830.0,0.3813097]
[1760005675329,2.77764455,121850.0,121830.0,0.3813097]
[1760005677928,2.41684455,121850.0,121830.0,0.7421097]
[1760005678823,1.67476455,121850.0,121830.0,0.7421097]
[1760005679029,1.41854648,121850.0,121840.0,0.3608]
[1760005679224,1.41954648,121850.0,121840.0,0.61701807]
[1760005679423,2.08778131,121850.0,121840.0,0.61701807]
[1760005679624,2.16142648,121850.0,121840.0,0.61701807]
[1760005680029,2.16142648,121850.0,121840.0,0.3608]
[1760005680229,2.16138648,121850.0,121840.0,0.3608]
[1760005680823,2.16038648,121850.0,121840.0,0.3608]
[1760005681030,2.16138648,121850.0,121840.0,0.3608]
[1760005681425,2.17838473,121850.0,121840.0,0.3608]
[1760005681726,2.10473956,121850.0,121840.0,0.3608]
[1760005682831,1.36289956,121850.0,121840.0,0.3608]
[1760005683128,2.10469956,121850.0,121840.0,0.3608]
[1760005683322,2.17178473,121850.0,121840.0,0.3608]
[1760005683727,1.41521523,121850.0,121840.0,0.3608]
[1760005684032,2.09813956,121850.0,121840.0,0.61701807]
[1760005684329,2.09813956,121850.0,121840.0,0.3608]
[1760005685429,2.09813956,121850.0,121840.0,0.61701807]
[1760005685828,2.17178473,121850.0,121840.0,0.61701807]
[1760005686831,2.09813956,121850.0,121840.0,0.61701807]
[1760005689031,2.06809956,121850.0,121840.0,0.99832777]
[1760005689234,2.06809956,121850.0,121840.0,1.39832777]
[1760005689235,1.18164342,121850.0,121840.0,1.39832777]
[1760005689532,1.07164342,121850.0,121840.0,2.14016777]
[1760005690030,0.99799825,121850.0,121840.0,2.14016777]
[1760005690532,1.07164342,121850.0,121840.0,2.14016777]
[1760005690728,1.07164342,121850.0,121840.0,1.39832777]
[1760005690937,1.07164342,121850.0,121840.0,2.14028777]
[1760005691232,1.05701056,121850.0,121840.0,2.14028777]
[1760005692032,1.05701056,121850.0,121840.0,2.19008777]
[1760005692234,1.05701056,121850.0,121840.0,2.44630584]
[1760005692838,1.05701056,121850.0,121840.0,2.19008777]
[1760005693726,1.05701056,121850.0,121840.0,2.44630584]
[1760005694228,1.05701056,121850.0,121840.0,2.31818698]
[1760005695036,1.07164342,121850.0,121840.0,2.31818698]
[1760005695331,0.24076715,121850.0,121840.0,2.31818698]
[1760005695533,0.76076715,121850.0,121840.0,2.31818698]
[1760005695733,0.94076715,121850.0,121840.0,2.31818698]
[1760005696938,0.94076715,121850.0,121840.0,1.57622698]
[1760005697238,0.94076715,121850.0,121840.0,2.31806698]
[1760005697635,0.94076715,121850.0,121840.0,1.57622698]
[1760005697834,0.94076715,121850.0,121840.0,2.51018562]
[1760005698238,0.94076715,121850.0,121840.0,2.31802698]
[1760005698437,0.94076715,121850.0,121840.0,2.51018562]
[1760005699439,0.94076715,121850.0,121840.0,2.49047271]
[1760005699640,0.94076715,121850.0,121840.0,2.47178652]
[1760005700143,0.10974817,121860.0,121840.0,2.47178652]
[1760005700335,0.73974817,121860.0,121850.0,0.3608]
[1760005700540,1.15974817,121860.0,121850.0,0.93426834]
[1760005700740,1.15974817,121860.0,121850.0,1.67602834]
[1760005701343,1.05656,121860.0,121850.0,1.67602834]
[1760005703644,0.95,121860.0,121850.0,1.67602834]
[1760005704445,1.02366965,121860.0,121850.0,1.67602834]
[1760005704646,1.02366965,121860.0,121850.0,1.86818698]
[1760005705046,1.08260074,121860.0,121850.0,1.86818698]
[1760005705249,1.00893109,121860.0,121850.0,1.12642698]
[1760005705546,1.00893109,121860.0,121850.0,1.86810698]
[1760005705953,1.10893109,121860.0,121850.0,1.86810698]
[1760005707040,1.12543372,121860.0,121850.0,1.86810698]
[1760005707252,1.12543372,121860.0,121850.0,1.67594834]
[1760005707947,1.02543372,121860.0,121850.0,1.67594834]
[1760005708343,0.96650263,121860.0,121850.0,1.86810698]
[1760005708644,1.02543372,121860.0,121850.0,1.86810698]
[1760005713145,1.02543372,121860.0,121850.0,1.67594834]
[1760005713752,1.02584316,121870.0,121850.0,1.67594834]
[1760005713948,2.06256216,121870.0,121860.0,0.55295864]
[1760005714149,2.4199815,121870.0,121860.0,0.55295864]
[1760005714343,1.6783415,121870.0,121860.0,0.55295864]
[1760005715252,1.75201115,121870.0,121860.0,0.55295864]
[1760005716047,2.49365115,121870.0,121860.0,0.55295864]
[1760005720054,1.75201115,121870.0,121860.0,0.55295864]
[1760005720255,2.23145251,121870.0,121860.0,0.55295864]
[1760005720455,2.23145251,121870.0,121860.0,1.12642698]
[1760005720456,1.40243317,121870.0,121860.0,1.12642698]
[1760005720854,1.40243317,121870.0,121860.0,2.06018562]
[1760005720855,0.71876352,121870.0,121860.0,2.06018562]
[1760005721056,0.02213783,121880.0,121860.0,2.51525562]
[1760005721353,0.79213783,121880.0,121870.0,0.55295864]
[1760005721654,1.11213783,121880.0,121870.0,0.93426834]
[1760005721855,1.15337352,121880.0,121870.0,0.93426834]
[1760005722453,1.15337352,121880.0,121870.0,0.55295864]
[1760005722958,1.27337352,121880.0,121870.0,0.55295864]
[1760005723758,1.33239254,121880.0,121870.0,0.55295864]
[1760005724659,1.10681471,121880.0,121870.0,0.55295864]
[1760005724858,1.17331263,121880.0,121870.0,0.93426834]
[1760005725159,1.11429361,121880.0,121870.0,0.93426834]
[1760005726659,1.11429361,121880.0,121870.0,1.12642698]
[1760005727159,0.81522965,121890.0,121870.0,1.12642698]
[1760005727352,1.35366965,121890.0,121880.0,0.74511728]
[1760005727556,1.44701761,121890.0,121880.0,1.12642698]
[1760005728061,1.44701761,121890.0,121880.0,1.86798698]
[1760005728762,1.51125312,121890.0,121880.0,1.86798698]
[1760005729162,1.55321881,121890.0,121880.0,1.86798698]
[1760005730464,1.47954916,121890.0,121880.0,1.86798698]
[1760005731057,1.53851825,121890.0,121880.0,1.86798698]
[1760005731764,1.53851825,121890.0,121880.0,1.12642698]
[1760005731965,1.53851825,121890.0,121880.0,1.86798698]
[1760005733067,1.55561895,121890.0,121880.0,1.86798698]
[1760005734867,1.07864153,121890.0,121880.0,1.86798698]
[1760005735066,1.47561895,121890.0,121880.0,1.86798698]
[1760005739469,1.22561895,121890.0,121880.0,1.86798698]
[1760005739768,1.22561895,121890.0,121880.0,1.86794698]
[1760005739970,1.20851825,121890.0,121880.0,1.86794698]
[1760005740160,1.2256547,121890.0,121880.0,1.86794698]
[1760005740364,0.89230674,121890.0,121880.0,1.52642698]
[1760005740569,1.19230674,121890.0,121880.0,2.26794698]
[1760005741170,1.19230674,121890.0,121880.0,1.52642698]
[1760005741373,1.19230674,121890.0,121880.0,2.26794698]
[1760005744079,1.01184829,121910.0,121880.0,2.26794698]
[1760005744375,2.41136896,121910.0,121900.0,0.3608]
[1760005744679,2.45218242,121910.0,121900.0,0.3608]
[1760005744875,2.45214242,121910.0,121900.0,0.3608]
[1760005745077,2.37847277,121910.0,121900.0,0.3608]
[1760005745277,2.48166094,121910.0,121900.0,0.3608]
[1760005747574,2.2895023,121910.0,121900.0,0.3608]
[1760005747881,2.48166094,121910.0,121900.0,0.3608]
[1760005748378,2.54845071,121910.0,121900.0,0.3608]
[1760005748579,2.98495071,121910.0,121900.0,0.3608]
[1760005749179,2.45131207,121910.0,121890.0,0.3608]
[1760005749377,0.15631768,121900.0,121890.0,0.20091]
[1760005749580,2.11466817,121900.0,121890.0,0.11812163]
[1760005749781,2.20773091,121900.0,121890.0,0.11812163]
[1760005750377,2.20773091,121900.0,121890.0,0.09231656]
[1760005750576,2.10454274,121900.0,121890.0,0.09231656]
[1760005751082,2.10454274,121900.0,121890.0,0.07260742]
[1760005751382,2.10454274,121900.0,121890.0,0.00282901]
[1760005753483,2.10450274,121900.0,121890.0,0.00282901]
[1760005753878,2.2078891,121900.0,121890.0,0.00282901]
[1760005754581,2.2078891,121900.0,121890.0,0.19215864]
[1760005755483,2.10450274,121900.0,121890.0,0.19215864]
[1760005755885,2.86530274,121900.0,121880.0,0.46806929]
[1760005756088,2.48195205,121900.0,121890.0,0.25612007]
[1760005758890,1.74051205,121900.0,121890.0,0.25612007]
[1760005759086,2.48195205,121900.0,121890.0,0.63742977]
[1760005759287,1.37971205,121900.0,121890.0,0.63742977]
[1760005759485,1.37971205,121900.0,121890.0,0.95388602]
[1760005759486,1.45356459,121900.0,121890.0,0.95388602]
[1760005759889,1.45356459,121900.0,121890.0,0.59308602]
[1760005760080,1.45356459,121900.0,121890.0,0.95388602]
[1760005760284,1.45356459,121900.0,121890.0,0.59308602]
[1760005760488,1.45356459,121900.0,121890.0,0.95388602]
[1760005760992,1.37971205,121900.0,121890.0,0.95388602]
[1760005761991,1.37971205,121900.0,121890.0,0.59308602]
[1760005763693,1.37971205,121900.0,121890.0,0.63742977]
[1760005763893,1.37971205,121900.0,121890.0,0.61874721]
[1760005764589,1.37971205,121900.0,121890.0,0.55222906]
[1760005765392,1.45358173,121900.0,121890.0,0.55222906]
[1760005766994,1.37971205,121900.0,121890.0,0.55222906]
[1760005771893,1.37971205,121900.0,121890.0,0.5335465]
[1760005772593,2.12115205,121900.0,121890.0,0.5087465]
[1760005774598,2.12115205,121900.0,121890.0,0.39788273]
[1760005776500,2.12115205,121900.0,121890.0,0.30729273]
[1760005776700,2.22453841,121900.0,121890.0,0.30729273]
[1760005777200,2.22453841,121900.0,121890.0,0.28758362]
[1760005780000,2.22453841,121900.0,121890.0,0.26890102]
[1760005782303,2.22453841,121900.0,121890.0,0.25612007]
[1760005784704,2.22453841,121900.0,121880.0,1.35836007]
[1760005784903,2.22453841,121900.0,121890.0,0.01278095]
[1760005785105,2.22453841,121900.0,121880.0,1.35836007]
[1760005785294,2.22453841,121900.0,121870.0,0.03131]
[1760005785295,0.3608,121890.0,121870.0,0.03131]
[1760005785495,0.3608,121880.0,121870.0,0.25612007]
[1760005785694,1.37744931,121880.0,121870.0,0.25612007]
[1760005785900,1.7657061,121880.0,121870.0,0.1674224]
[1760005787696,1.86912679,121880.0,121870.0,0.1674224]
[1760005787896,1.86912679,121880.0,121860.0,0.91227595]
[1760005789409,1.8395697,121880.0,121870.0,0.25612007]
[1760005789604,1.8395697,121880.0,121870.0,0.21177084]
[1760005790906,1.8395697,121880.0,121860.0,0.91227595]
[1760005793808,2.09568977,121880.0,121860.0,0.91227595]
[1760005795212,2.08089694,121880.0,121860.0,0.99756007]
[1760005795810,2.08089694,121880.0,121860.0,0.96346007]
[1760005796213,1.82477687,121880.0,121860.0,0.96346007]
[1760005797014,1.82477687,121880.0,121860.0,0.22202007]
[1760005797208,1.82477687,121880.0,121860.0,0.96346007]